bitfinex-derivatives/quotes_SOLF0:USTF0_20240927
["timestamp","ask_amount","ask_price","bid_price","bid_amount"]
[1727428571798,3.1514,158.62,158.57,3.1522]
[1727428572003,3.1514,158.62,158.55,16.66]
[1727428572306,3.1512,158.63,158.55,16.66]
[1727428572506,3.1512,158.63,158.58,3.152]
[1727428572708,3.1514,158.62,158.58,3.152]
[1727428573494,1.569,158.64,158.57,3.1523]
[1727428574002,1.569,158.64,158.58,3.1521]
[1727428574003,3.1515,158.62,158.58,3.1521]
[1727428574902,3.1515,158.62,158.59,3.1518]
[1727428575101,3.1512,158.63,158.59,3.1518]
[1727428575709,3.1514,158.62,158.59,3.1518]
[1727428575908,3.1514,158.62,158.57,16.66]
[1727428575909,3.1514,158.62,158.58,3.1521]
[1727428576505,3.1516,158.61,158.58,3.1521]
[1727428577407,19.7819,158.67,158.57,3.1523]
[1727428577598,16.66,158.64,158.53,91.7999329]
[1727428577798,4.79858132,158.63,158.53,91.7999329]
[1727428578003,1.5746,158.63,158.53,91.7999329]
[1727428579105,3.1517,158.6,158.56,3.1524]
[1727428579409,3.1515,158.62,158.59,3.1519]
[1727428579905,3.1512,158.63,158.57,16.66]
[1727428580505,3.1512,158.63,158.59,3.1518]
[1727428582707,16.66,158.66,158.57,16.66]
[1727428582912,16.66,158.64,158.54,16.66]
[1727428583205,1.6175,158.63,158.54,16.66]
[1727428583409,3.1519,158.6,158.57,3.1523]
[1727428583811,1.6175,158.63,158.54,16.66]
[1727428584016,4.70001696,158.63,158.55,3.1527]
[1727428584609,3.1521,158.59,158.55,3.1527]
[1727428586906,1.6175,158.63,158.54,16.66]
[1727428586907,3.1519,158.6,158.54,16.66]
[1727428587421,3.152,158.59,158.56,3.1524]
[1727428587909,3.18402018,158.62,158.54,16.66]
[1727428588113,1.6175,158.63,158.54,16.66]
[1727428588609,3.152,158.59,158.55,3.1526]
[1727428588814,3.152,158.59,158.54,16.66]
[1727428589021,1.6175,158.63,158.54,16.66]
[1727428589330,3.1519,158.6,158.57,3.1522]
[1727428591430,1.6175,158.63,158.56,16.66]
[1727428591724,19.7819,158.67,158.59,16.66]
[1727428591725,1.5882,158.67,158.59,16.66]
[1727428592126,1.5882,158.67,158.6,3.1517]
[1727428593022,3.1511,158.64,158.6,3.1517]
[1727428593436,3.1514,158.62,158.53,75.1399329]
[1727428593620,3.1514,158.62,158.57,16.66]
[1727428594032,3.1514,158.62,158.59,3.1519]
[1727428594424,3.1512,158.63,158.57,16.66]
[1727428594926,3.1512,158.63,158.6,3.1517]
[1727428595324,3.1514,158.62,158.6,3.1517]
[1727428595527,1.5882,158.67,158.59,3.1519]
[1727428595830,3.1515,158.62,158.59,3.1519]
[1727428596131,3.1515,158.62,158.6,3.1517]
[1727428596525,3.1512,158.63,158.6,3.1517]
[1727428596927,1.5882,158.67,158.6,3.1517]
[1727428597122,3.1513,158.63,158.6,3.1517]
[1727428599028,3.1514,158.62,158.59,19.8119]
[1727428599335,16.66,158.66,158.59,3.1519]
[1727428599536,1.5882,158.67,158.59,3.1519]
[1727428599936,1.5882,158.67,158.6,3.1517]
[1727428599937,3.1513,158.63,158.6,3.1517]
[1727428600131,1.5882,158.67,158.57,16.66]
[1727428600734,3.1513,158.63,158.6,3.1516]
[1727428602538,3.1514,158.62,158.6,3.1516]
[1727428603138,16.66,158.66,158.55,16.66]
[1727428603335,16.66,158.64,158.55,16.66]
[1727428603541,3.152,158.59,158.56,3.1524]
[1727428603731,1.4199,158.63,158.56,3.1524]
[1727428604031,1.4199,158.63,158.55,16.66]
[1727428604230,3.1519,158.6,158.55,16.66]
[1727428605136,1.5882,158.67,158.59,16.66]
[1727428605331,3.0502,158.67,158.6,3.1517]
[1727428606438,3.1513,158.63,158.6,3.1517]
[1727428607834,3.151,158.64,158.61,3.1515]
[1727428608231,3.0502,158.67,158.61,3.1515]
[1727428609243,68.1,158.73,158.65,16.66]
[1727428609443,1.4421,158.75,158.65,16.66]
[1727428609639,16.66,158.74,158.65,16.66]
[1727428609847,3.1501,158.69,158.65,19.8107]
[1727428610142,16.66,158.74,158.65,16.66]
[1727428610446,4.53798584,158.75,158.66,16.66]
[1727428610942,4.53798584,158.75,158.67,3.1502]
[1727428611545,3.1497,158.71,158.67,3.1502]
[1727428611840,4.53798584,158.75,158.67,3.1502]
[1727428612244,3.1497,158.71,158.67,3.1502]
[1727428613041,3.1499,158.7,158.66,19.8105]
[1727428613743,3.1499,158.7,158.67,3.1503]
[1727428614341,3.1496,158.71,158.67,3.1503]
[1727428614739,1.4421,158.75,158.68,3.15]
[1727428614942,1.4421,158.75,158.68,19.81]
[1727428616344,3.1495,158.72,158.68,19.81]
[1727428617544,3.1493,158.73,158.69,3.1499]
[1727428617848,1.4421,158.75,158.7,16.66]
[1727428618042,1.4906,158.79,158.7,19.8097]
[1727428618244,3.1489,158.75,158.7,19.8097]
[1727428618744,1.4906,158.79,158.7,19.8097]
[1727428618745,3.149,158.74,158.7,19.8097]
[1727428618946,1.4906,158.79,158.72,16.66]
[1727428619349,3.1487,158.76,158.72,19.8093]
[1727428619650,3.1487,158.76,158.72,16.66]
[1727428619848,3.1489,158.75,158.72,16.66]
[1727428620450,3.1491,158.74,158.72,16.66]
[1727428620649,1.4906,158.79,158.72,16.66]
[1727428623058,16.66,158.78,158.69,1.4431]
[1727428623247,3.1498,158.7,158.66,16.66]
[1727428623443,1.4906,158.79,158.65,1.4579]
[1727428623444,16.66,158.74,158.65,1.4579]
[1727428623645,3.1504,158.67,158.65,1.4579]
[1727428623848,3.21589311,158.73,158.65,1.4579]
[1727428624245,3.1502,158.68,158.65,1.4579]
[1727428625360,21.31548553,158.72,158.63,1.4827]
[1727428625547,18.1425,158.72,158.63,16.66]
[1727428625748,1.4825,158.72,158.65,16.66]
[1727428626250,1.4825,158.72,158.67,16.66]
[1727428627155,16.66,158.76,158.67,19.8102]
[1727428627363,18.0691,158.76,158.67,19.8102]
[1727428627657,3.1497,158.71,158.68,3.1502]
[1727428627852,1.4091,158.76,158.68,3.1502]
[1727428628557,1.4091,158.76,158.69,3.1499]
[1727428629153,3.1495,158.72,158.68,3.1501]
[1727428630059,3.1495,158.72,158.69,3.1499]
[1727428630951,3.1492,158.73,158.69,3.1499]
[1727428631257,3.1492,158.73,158.69,19.8099]
[1727428631564,1.4091,158.76,158.7,3.1497]
[1727428631856,1.4091,158.76,158.69,16.66]
[1727428632056,1.4091,158.76,158.71,3.1496]
[1727428632253,1.4091,158.76,158.71,19.8096]
[1727428632473,3.1489,158.75,158.71,19.8096]
[1727428633958,3.1489,158.75,158.72,3.1493]
[1727428634362,3.1486,158.76,158.72,3.1493]
[1727428637056,1.4168,158.8,158.71,16.66]
[1727428637257,18.0768,158.8,158.71,16.66]
[1727428637859,1.4168,158.8,158.71,16.66]
[1727428638359,1.4168,158.8,158.74,16.66]
[1727428639353,1.4168,158.8,158.74,19.8089]
[1727428640556,3.1483,158.78,158.74,19.8089]
[1727428640756,1.4168,158.8,158.72,16.66]
[1727428641567,3.1487,158.76,158.72,19.8092]
[1727428642165,3.1487,158.76,158.73,3.1491]
[1727428644466,3.1487,158.76,158.74,3.1489]
[1727428644765,3.1487,158.76,158.74,19.8089]
[1727428645960,1.4168,158.8,158.74,19.8089]
[1727428645961,1.4168,158.8,158.75,3.1488]
[1727428646163,1.3546,158.86,158.77,16.66]
[1727428646473,1.4425,158.88,158.84,10.64]
[1727428647167,3.1468,158.85,158.78,1.4107]
[1727428647365,1.4425,158.88,158.84,10.64]
[1727428647671,10.64,158.86,158.81,10.64]
[1727428647859,1.4425,158.88,158.82,10.64]
[1727428648064,10.64,158.87,158.82,10.64]
[1727428648266,10.64,158.87,158.78,1.4107]
[1727428648267,10.64,158.84,158.78,1.4107]
[1727428648468,16.63,158.86,158.78,1.4107]
[1727428648867,3.148,158.79,158.78,1.4107]
[1727428655672,3.1478,158.8,158.78,18.0407]
[1727428657163,3.1476,158.81,158.78,21.1889]
[1727428657364,3.1476,158.81,158.8,16.63]
[1727428659775,3.148,158.8,158.78,18.0407]
[1727428659976,16.63,158.86,158.78,1.4107]
[1727428660479,3.148,158.79,158.78,1.4107]
[1727428663479,3.1478,158.8,158.78,18.0407]
[1727428666171,7.735,158.88,158.78,18.0407]
[1727428666383,7.735,158.88,158.8,16.63]
[1727428666584,3.1476,158.81,158.8,16.63]
[1727428668392,1.4425,158.88,158.8,16.63]
[1727428668683,1.4425,158.88,158.82,16.63]
[1727428669885,3.1473,158.83,158.82,16.63]
[1727428670273,3.1473,158.83,158.82,10.64]
[1727428677487,3.1471,158.84,158.82,10.64]
[1727428677683,3.1471,158.84,158.83,10.64]
[1727428678082,3.1469,158.85,158.83,10.64]
[1727428678287,3.1469,158.85,158.84,10.64]
[1727428682594,3.1467,158.86,158.84,10.64]
[1727428682794,3.1467,158.86,158.85,10.64]
[1727428684094,3.1465,158.87,158.85,10.64]
[1727428684297,3.1465,158.87,158.86,10.64]
[1727428686784,10.64,158.88,158.78,1.4107]
[1727428686988,2.6253,158.91,158.82,10.64]
[1727428687190,10.64,158.87,158.82,10.64]
[1727428687896,3.147,158.84,158.82,10.64]
[1727428688095,3.147,158.84,158.83,10.64]
[1727428688794,3.1474,158.82,158.78,1.4107]
[1727428688991,2.6253,158.91,158.81,10.64]
[1727428688992,10.64,158.86,158.81,10.64]
[1727428689191,1.3079,158.85,158.81,10.64]
[1727428689495,3.1474,158.82,158.81,10.64]
[1727428690197,1.3079,158.85,158.81,10.64]
[1727428690396,1.3079,158.85,158.83,10.64]
[1727428690585,1.3079,158.85,158.78,1.4107]
[1727428690791,3.1473,158.83,158.79,3.1478]
[1727428690991,1.3079,158.85,158.75,71.0734084]
[1727428691297,1.3079,158.85,158.8,10.64]
[1727428691891,1.3079,158.85,158.82,10.64]
[1727428692800,3.1474,158.83,158.82,10.64]
[1727428693885,3.1475,158.82,158.78,3.1481]
[1727428694092,3.1475,158.82,158.8,10.64]
[1727428694290,3.1475,158.82,158.81,10.64]
[1727428694491,1.3079,158.85,158.81,10.64]
[1727428694896,3.1474,158.82,158.81,10.64]
[1727428695620,3.1476,158.81,158.78,3.1481]
[1727428695790,3.1476,158.81,158.8,10.64]
[1727428696587,10.64,158.84,158.74,2.6952]
[1727428696792,10.64,158.84,158.78,10.64]
[1727428696993,10.64,158.83,158.78,10.64]
[1727428697893,3.1479,158.8,158.78,10.64]
[1727428698901,1.2883,158.84,158.78,10.64]
[1727428699105,1.2883,158.84,158.8,10.64]
[1727428699499,3.1478,158.81,158.8,10.64]
[1727428699694,3.1478,158.81,158.77,3.1482]
[1727428699695,10.64,158.83,158.75,3.18361511]
[1727428699903,10.64,158.82,158.78,10.64]
[1727428700096,16.35304155,158.84,158.78,10.64]
[1727428700295,13.2489,158.84,158.8,10.64]
[1727428700599,3.1476,158.81,158.8,10.64]
[1727428705001,3.1481,158.79,158.78,10.64]
[1727428706401,2.6089,158.84,158.78,10.64]
[1727428706604,3.16743804,158.83,158.74,2.7464]
[1727428706806,3.16743804,158.83,158.79,10.64]
[1727428707810,3.1478,158.8,158.79,10.64]
[1727428708213,3.1929438,158.82,158.78,10.64]
[1727428708507,2.6089,158.84,158.76,3.1484]
[1727428708713,2.6089,158.84,158.8,10.64]
[1727428709106,3.1476,158.81,158.8,10.64]
[1727428710209,11.9479,158.85,158.8,10.64]
[1727428710210,1.3079,158.85,158.8,10.64]
[1727428710509,11.9073,158.91,158.83,10.64]
[1727428710709,11.9073,158.91,158.82,3.1473]
[1727428710710,1.3297,158.9,158.85,10.64]
[1727428711311,11.9697,158.9,158.85,10.64]
[1727428711816,1.3297,158.9,158.86,10.64]
[1727428712308,3.1463,158.88,158.86,10.64]
[1727428713112,1.3297,158.9,158.8,3.07996604]
[1727428713308,10.64,158.88,158.77,1.3235]
[1727428713618,10.64,158.87,158.82,10.64]
[1727428713816,3.1469,158.85,158.82,10.64]
[1727428714013,10.64,158.87,158.82,10.64]
[1727428714208,3.1469,158.85,158.82,10.64]
[1727428715707,3.1462,158.88,158.83,13.7871]
[1727428715910,10.64,158.89,158.84,10.64]
[1727428716307,3.1467,158.86,158.84,10.64]
[1727428717816,3.1468,158.85,158.84,10.64]
[1727428718015,3.1468,158.85,158.78,3.12728926]
[1727428718016,10.64,158.88,158.83,10.64]
[1727428718613,3.1469,158.85,158.83,10.64]
[1727428720726,3.147,158.84,158.83,10.64]
[1727428721026,3.147,158.84,158.82,10.64]
[1727428722129,3.147,158.84,158.83,10.64]
[1727428722933,1.3297,158.9,158.83,10.64]
[1727428723123,11.9697,158.9,158.85,10.64]
[1727428723927,11.9697,158.9,158.84,10.64]
[1727428724328,11.9697,158.9,158.85,10.64]
[1727428724638,10.64,158.89,158.85,10.64]
[1727428724927,10.64,158.89,158.84,10.64]
[1727428725326,11.9697,158.9,158.85,10.64]
[1727428725625,11.9697,158.9,158.86,10.64]
[1727428725626,3.1464,158.88,158.86,10.64]
[1727428725829,1.3297,158.9,158.86,10.64]
[1727428726027,3.1464,158.87,158.86,10.64]
[1727428726225,10.64,158.88,158.77,4.50104663]
[1727428726427,10.64,158.88,158.83,10.64]
[1727428726623,3.1469,158.85,158.83,10.64]
[1727428726827,3.1469,158.85,158.77,4.50104663]
[1727428726828,10.64,158.85,158.77,1.3235]
[1727428727123,1.3297,158.9,158.79,10.64]
[1727428727328,10.64,158.8,158.69,0.1458]
[1727428727520,10.64,158.79,158.74,16.4274279]
[1727428727831,10.64,158.79,158.74,10.64]
[1727428728131,3.1487,158.76,158.71,3.1496]
[1727428728423,2.7204,158.83,158.7,3.1497]
[1727428728424,3.20088468,158.8,158.7,3.1497]
[1727428728629,2.7204,158.83,158.71,10.64]
[1727428728820,10.64,158.76,158.72,10.64]
[1727428729222,3.08558856,158.79,158.72,10.64]
[1727428729419,10.64,158.8,158.76,10.64]
[1727428730025,3.1484,158.77,158.76,10.64]
[1727428730224,10.64,158.79,158.74,10.64]
[1727428730423,16.64,158.8,158.69,1.3793]
[1727428730626,16.64,158.8,158.7,5.78216248]
[1727428730823,16.64,158.8,158.69,18.0193]
[1727428731025,16.64,158.8,158.7,5.78216047]
[1727428731224,3.16465776,158.79,158.69,18.0193]
[1727428731426,3.16465776,158.79,158.7,8.93016405]
[1727428731633,3.16465776,158.79,158.71,16.64]
[1727428732131,3.1487,158.76,158.71,19.7895]
[1727428732333,19.85231511,158.81,158.73,16.64]
[1727428732631,3.1483,158.78,158.73,16.64]
[1727428733052,19.3604,158.83,158.75,16.64]
[1727428733220,3.1481,158.79,158.75,16.64]
[1727428733425,2.7204,158.83,158.75,16.64]
[1727428733630,3.148,158.8,158.75,19.7886]
[1727428733836,3.148,158.8,158.75,16.64]
[1727428734036,2.7204,158.83,158.75,16.64]
[1727428734332,2.7204,158.83,158.76,3.1484]
[1727428734333,3.1477,158.81,158.76,3.1484]
[1727428734536,3.1477,158.81,158.75,16.64]
[1727428735336,3.1478,158.8,158.75,16.64]
[1727428735930,1.364,158.83,158.75,16.64]
[1727428736130,1.364,158.83,158.73,17.9131]
[1727428736339,16.64,158.82,158.73,17.9131]
[1727428736539,16.64,158.82,158.73,16.64]
[1727428736738,2.6378,158.83,158.72,3.1493]
[1727428736739,3.1487,158.76,158.72,3.1493]
[1727428736938,16.64,158.8,158.71,16.64]
[1727428737335,3.149,158.74,158.7,3.1497]
[1727428738941,3.1492,158.73,158.69,21.1692]
[1727428739139,3.1492,158.73,158.69,19.7899]
[1727428739337,16.64,158.76,158.68,1.3449]
[1727428739545,3.1497,158.71,158.68,1.3449]
[1727428740427,3.1494,158.72,158.68,4.495]
[1727428741338,1.3141,158.77,158.69,16.64]
[1727428742036,3.1488,158.75,158.69,16.64]
[1727428742236,1.3141,158.77,158.69,16.64]
[1727428742441,1.3141,158.77,158.71,16.64]
[1727428742942,16.64,158.82,158.73,16.64]
[1727428743244,17.9646,158.82,158.73,16.64]
[1727428743635,3.1483,158.78,158.73,19.789]
[1727428743835,1.3246,158.82,158.73,16.64]
[1727428744266,3.1481,158.79,158.75,3.1487]
[1727428744541,1.3246,158.82,158.75,16.64]
[1727428744745,3.1477,158.81,158.77,3.1484]
[1727428744936,1.3246,158.82,158.75,16.64]
[1727428745133,1.3246,158.82,158.74,1.301]
[1727428745134,1.3246,158.82,158.78,16.64]
[1727428746037,3.147,158.84,158.79,3.1478]
[1727428746235,16.64,158.88,158.76,3.20245976]
[1727428746442,1.2953,158.89,158.82,16.64]
[1727428746841,3.1467,158.86,158.82,16.64]
[1727428747240,1.2953,158.89,158.82,16.64]
[1727428747437,1.2953,158.89,158.84,16.64]
[1727428748040,3.1464,158.88,158.84,16.64]
[1727428748243,1.2953,158.89,158.82,16.64]
[1727428748445,3.1462,158.88,158.82,16.64]
[1727428748748,1.2953,158.89,158.83,3.147]
[1727428748944,3.1463,158.88,158.83,3.147]
[1727428750644,3.1464,158.87,158.82,19.7873]
[1727428751548,3.1462,158.88,158.83,3.1472]
[1727428751741,1.2953,158.89,158.82,16.64]
[1727428752747,1.2953,158.89,158.81,1.2919]
[1727428753344,1.2953,158.89,158.81,4.4393]
[1727428753745,1.2953,158.89,158.81,1.2919]
[1727428754948,1.2953,158.89,158.82,16.64]
[1727428755545,1.2953,158.89,158.82,19.7873]
[1727428755747,1.2953,158.89,158.82,16.64]
[1727428756149,3.1467,158.86,158.82,16.64]
[1727428756453,1.2953,158.89,158.82,16.64]
[1727428756847,3.1464,158.88,158.83,3.147]
[1727428757247,1.2953,158.89,158.83,3.147]
[1727428758157,3.1465,158.87,158.83,3.147]
[1727428758547,3.1465,158.87,158.82,19.7873]
[1727428758750,1.2953,158.89,158.82,16.64]
[1727428759854,3.1469,158.85,158.82,16.64]
[1727428760851,1.2953,158.89,158.8,16.64]
[1727428761058,16.64,158.88,158.8,16.64]
[1727428761466,3.1472,158.84,158.8,16.64]
[1727428762253,3.1472,158.84,158.8,19.7877]
[1727428763562,3.1472,158.84,158.81,3.1475]
[1727428765266,1.2953,158.89,158.83,16.64]
[1727428765763,3.1463,158.88,158.84,3.1468]
[1727428767470,3.1461,158.89,158.85,3.1467]
[1727428768664,3.1462,158.88,158.85,3.1467]
[1727428768972,16.64,158.91,158.84,1.2729]
[1727428769166,16.64,158.91,158.8,16.64]
[1727428769556,3.19099842,158.92,158.82,16.64]
[1727428769758,3.1464,158.87,158.83,1.2729]
[1727428769963,3.19729479,158.9,158.83,1.2729]
[1727428770165,16.64,158.91,158.83,1.2729]
[1727428770362,16.64,158.89,158.83,1.2729]
[1727428770668,16.64,158.89,158.79,16.64]
[1727428771067,3.07596863,158.88,158.79,16.64]
[1727428771263,3.07596863,158.88,158.77,4.4750484]
[1727428771264,16.64,158.89,158.81,16.64]
[1727428771661,3.1467,158.86,158.81,19.7875]
[1727428772755,3.1468,158.85,158.81,19.7875]
[1727428773467,3.1467,158.86,158.81,19.7875]
[1727428773661,19.83497745,158.89,158.81,19.7875]
[1727428774164,3.1467,158.86,158.81,19.7875]
[1727428774868,19.83497745,158.89,158.79,16.64]
[1727428775059,16.64,158.87,158.79,16.64]
[1727428775262,1.3323,158.86,158.79,16.64]
[1727428775465,3.147,158.84,158.79,19.7879]
[1727428775659,1.3495,158.94,158.81,16.64]
[1727428775871,1.3495,158.94,158.77,4.45896022]
[1727428775872,17.9723,158.93,158.83,16.64]
[1727428776062,17.9723,158.93,158.85,16.64]
[1727428776258,3.21100491,158.92,158.85,16.64]
[1727428776469,3.1459,158.9,158.85,19.7866]
[1727428776663,3.1459,158.9,158.85,16.64]
[1727428776974,1.3323,158.93,158.86,1.3657]
[1727428777163,3.1455,158.92,158.87,19.7862]
[1727428777363,1.3323,158.93,158.87,19.7862]
[1727428778062,3.1456,158.91,158.87,16.64]
[1727428779070,1.3323,158.93,158.87,19.7862]
[1727428779874,2.7314,159.01,158.91,16.64]
[1727428780176,1.3391,159.0,158.91,16.64]
[1727428780366,3.1448,158.96,158.91,16.64]
[1727428780571,3.1448,158.96,158.91,19.7855]
[1727428781163,1.3391,159.0,158.93,16.64]
[1727428782068,3.1442,158.98,158.93,16.64]
[1727428782371,3.1442,158.98,158.93,18.0208]
[1727428782567,3.1442,158.98,158.93,21.1658]
[1727428782784,3.1444,158.97,158.93,21.1658]
[1727428783075,1.3391,159.0,158.93,21.1658]
[1727428783267,1.3391,159.0,158.93,18.0208]
[1727428784275,3.1442,158.99,158.94,3.145]
[1727428784574,1.3391,159.0,158.93,18.0208]
[1727428784974,3.1446,158.96,158.93,18.0208]
[1727428785171,1.3391,159.0,158.93,1.3808]
[1727428785376,67.98,159.15,159.0,3.1438]
[1727428785672,16.64,159.06,158.94,0.1446]
[1727428785878,16.64,159.06,158.96,16.64]
[1727428786088,16.64,159.06,158.97,1.3652]
[1727428786373,3.19599943,159.07,158.97,1.3652]
[1727428786576,16.64,159.07,158.97,1.3652]
[1727428786773,16.64,159.05,158.97,1.3652]
[1727428786992,3.07388799,159.07,158.97,1.3652]
[1727428787177,16.64,159.06,158.97,1.3652]
[1727428787676,3.1437,159.01,158.97,1.3652]
[1727428787882,16.64,159.02,158.93,1.3808]
[1727428788180,16.64,159.12,158.93,1.3808]
[1727428788181,3.1442,158.98,158.93,1.3808]
[1727428788372,16.64,159.0,158.93,1.3808]
[1727428788771,3.1447,158.96,158.93,1.3808]
[1727428790078,2.5904,159.03,158.94,16.64]
[1727428790277,17.8914,159.03,158.94,16.64]
[1727428792787,3.1438,159.0,158.94,19.785]
[1727428793285,3.1438,159.0,158.94,16.64]
[1727428794080,17.8914,159.03,158.94,16.64]
[1727428794290,16.64,159.01,158.93,1.3808]
[1727428795994,3.1446,158.96,158.93,1.3808]
[1727428796689,16.64,158.99,158.9,16.64]
[1727428796895,16.64,158.97,158.84,0.1471]
[1727428797196,3.145,158.94,158.9,16.64]
[1727428797502,1.3768,158.96,158.9,16.64]
[1727428797698,1.3768,158.96,158.88,16.64]
[1727428798201,3.1452,158.93,158.88,19.786]
[1727428798396,1.3768,158.96,158.88,16.64]
[1727428798899,3.145,158.94,158.88,19.7862]
[1727428799499,3.1453,158.93,158.88,19.7862]
[1727428799817,1.3768,158.96,158.88,16.64]
[1727428800098,3.145,158.94,158.88,19.786]
[1727428800300,1.2828,159.02,158.92,16.64]
[1727428800490,1.3477,159.01,158.92,16.64]
[1727428801299,16.64,158.99,158.88,16.64]
[1727428801495,3.14687742,158.98,158.88,16.64]
[1727428801698,1.2785,159.0,158.9,16.64]
[1727428801894,17.9877,159.01,158.92,16.64]
[1727428802290,17.9877,159.01,158.92,21.1516]
[1727428802698,3.1443,158.98,158.92,21.1516]
[1727428802890,17.9877,159.01,158.92,21.1516]
[1727428803295,17.9877,159.01,158.92,18.0063]
[1727428803900,17.9877,159.01,158.92,21.1517]
[1727428804304,3.1445,158.97,158.92,21.1517]
[1727428807005,3.1446,158.96,158.92,21.1517]
[1727428807199,3.1446,158.96,158.92,18.0063]
[1727428807902,16.64,158.97,158.86,16.64]
[1727428808106,1.2574,158.95,158.86,1.3717]
[1727428808299,1.2574,158.95,158.87,3.1463]
[1727428808897,3.1456,158.91,158.87,3.1463]
[1727428809105,1.2574,158.95,158.88,3.1461]
[1727428809405,3.1453,158.93,158.87,16.64]
[1727428809607,1.2574,158.95,158.88,3.1462]
[1727428810000,3.1453,158.93,158.87,16.64]
[1727428810204,1.2574,158.95,158.88,3.1462]
[1727428810900,1.2574,158.95,158.89,3.146]
[1727428811106,1.2574,158.95,158.87,16.64]
[1727428811307,1.2574,158.95,158.89,16.64]
[1727428811606,16.64,159.01,158.92,16.64]
[1727428811801,1.3087,159.01,158.92,16.64]
[1727428812109,1.3087,159.01,158.92,19.7853]
[1727428812705,1.3087,159.01,158.92,16.64]
[1727428812905,17.9487,159.01,158.92,16.64]
[1727428813907,3.1448,158.96,158.92,16.64]
[1727428814105,17.9487,159.01,158.92,19.7853]
[1727428814307,3.1446,158.97,158.92,19.7853]
[1727428814505,17.9487,159.01,158.92,19.7853]
[1727428814812,17.9487,159.01,158.92,16.64]
[1727428815008,3.1449,158.95,158.92,16.64]
[1727428815209,3.1449,158.95,158.86,1.3717]
[1727428815210,3.2251432,158.98,158.9,16.64]
[1727428815409,16.64,158.97,158.88,16.64]
[1727428815612,3.1456,158.92,158.88,16.64]
[1727428816514,16.64,158.97,158.88,16.64]
[1727428817108,16.64,158.97,158.86,1.3717]
[1727428817307,16.64,158.94,158.85,1.3157]
[1727428817510,1.3164,158.93,158.83,16.64]
[1727428818108,1.3164,158.93,158.85,16.64]
[1727428818308,3.1457,158.91,158.86,3.1465]
[1727428818510,1.3164,158.93,158.87,16.64]
[1727428818910,4.4618,158.93,158.88,3.1461]
[1727428819114,3.1454,158.93,158.87,17.9857]
[1727428819519,3.1454,158.93,158.9,16.64]
[1727428821721,3.1455,158.92,158.9,16.64]
[1727428822924,3.1453,158.93,158.9,16.64]
[1727428824722,3.1454,158.92,158.9,16.64]
[1727428825118,3.1456,158.91,158.87,21.132]
[1727428825321,16.64,158.96,158.87,17.9857]
[1727428825527,16.64,158.94,158.87,1.3457]
[1727428825719,3.146,158.9,158.86,1.3185]
[1727428825922,3.1395225,158.92,158.86,1.3185]
[1727428826126,16.64,158.94,158.85,16.64]
[1727428826721,3.146,158.9,158.85,19.7866]